[Event "Titled Tuesday Blitz December 27 Early 2022"]
[White "Feng, Eric"]
[Black "Savic, Miroslav"]
[WhiteFideId "30952590"]
[BlackFideId "14508494"]
[WhiteElo "1951"]
[BlackElo "2167"]
[Result "0-1"]
[Round "01"]
[TimeControl "180+2"]
[Date "2022.12.27"]
[WhiteClock "0:00:25"]
[BlackClock "0:01:16"]

1. d4 {[%clk 0:02:59]}  Nf6 {[%clk 0:02:57]} 2. c4 {[%clk 0:02:59]}  e6 {[%clk 0:02:58]} 3. Nf3 {[%clk 0:02:59]}  Bb4+ {[%clk 0:02:57]} 4. Bd2 {[%clk 0:02:59]}  a5 {[%clk 0:02:58]} 5. g3 {[%clk 0:02:59]}  b6 {[%clk 0:02:57]} 6. Bg2 {[%clk 0:02:59]}  Bb7 {[%clk 0:02:57]} 7. O-O {[%clk 0:02:59]}  Bxd2 {[%clk 0:02:55]} 8. Nbxd2 {[%clk 0:02:59]}  O-O {[%clk 0:02:55]} 9. Rc1 {[%clk 0:02:59]}  Qe7 {[%clk 0:02:54]} 10. e3 {[%clk 0:03:00]}  d6 {[%clk 0:02:53]} 11. Qe2 {[%clk 0:02:58]}  Nbd7 {[%clk 0:02:53]} 12. e4 {[%clk 0:02:58]}  e5 {[%clk 0:02:52]} 13. d5 {[%clk 0:02:58]}  Nc5 {[%clk 0:02:52]} 14. Ne1 {[%clk 0:02:58]}  Nfd7 {[%clk 0:02:50]} 15. Nd3 {[%clk 0:02:56]}  Nxd3 {[%clk 0:02:49]} 16. Qxd3 {[%clk 0:02:57]}  Nc5 {[%clk 0:02:49]} 17. Qe3 {[%clk 0:02:57]}  f5 {[%clk 0:02:47]} 18. exf5 {[%clk 0:02:57]}  Rxf5 {[%clk 0:02:46]} 19. Ne4 {[%clk 0:02:56]}  Raf8 {[%clk 0:02:39]} 20. Nxc5 {[%clk 0:02:51]}  bxc5 {[%clk 0:02:39]} 21. Qc3 {[%clk 0:02:44]}  a4 {[%clk 0:02:27]} 22. Qa5 {[%clk 0:02:33]}  Ra8 {[%clk 0:02:25]} 23. Qb5 {[%clk 0:02:30]}  Bc8 {[%clk 0:02:24]} 24. Qc6 {[%clk 0:02:12]}  Ra6 {[%clk 0:02:16]} 25. Qb5 {[%clk 0:02:08]}  Ra8 {[%clk 0:02:16]} 26. b3 {[%clk 0:01:44]}  Rf8 {[%clk 0:01:59]} 27. bxa4 {[%clk 0:01:20]}  Bd7 {[%clk 0:01:58]} 28. Qb7 {[%clk 0:01:17]}  Bxa4 {[%clk 0:01:51]} 29. Rb1 {[%clk 0:01:17]}  Bc2 {[%clk 0:01:44]} 30. Rb2 {[%clk 0:01:17]}  Bd3 {[%clk 0:01:44]} 31. Rd1 {[%clk 0:01:18]}  Bxc4 {[%clk 0:01:42]} 32. Rdd2 {[%clk 0:01:08]}  e4 {[%clk 0:01:40]} 33. Re2 {[%clk 0:00:32]}  Bxe2 {[%clk 0:01:31]} 34. Rxe2 {[%clk 0:00:33]}  Rab8 {[%clk 0:01:30]} 35. Qc6 {[%clk 0:00:32]}  Rb1+ {[%clk 0:01:27]} 36. Bf1 {[%clk 0:00:32]}  Qf7 {[%clk 0:01:19]} 37. Rxe4 {[%clk 0:00:25]}  Qxf2+ {[%clk 0:01:16]} 38. Kh1 {[%clk 0:00:25]}  Rxf1# {[%clk 0:01:16]} 0-1


[Site "https://www.chess.com"]

[Event "Titled Tuesday Blitz December 27 Early 2022"]
[White "Gabdrakhmanov, Azat"]
[Black "Golizadeh, Asghar"]
[WhiteFideId "34189197"]
[BlackFideId "12505269"]
[WhiteElo "2316"]
[BlackElo "2455"]
[Result "0-1"]
[Round "01"]
[TimeControl "180+2"]
[Date "2022.12.27"]
[WhiteClock "0:00:01"]
[BlackClock "0:00:04"]

1. e4 {[%clk 0:02:59]}  c5 {[%clk 0:02:59]} 2. Nf3 {[%clk 0:02:59]}  e6 {[%clk 0:02:58]} 3. d4 {[%clk 0:02:59]}  cxd4 {[%clk 0:02:58]} 4. Nxd4 {[%clk 0:03:00]}  a6 {[%clk 0:02:58]} 5. c4 {[%clk 0:03:00]}  Nf6 {[%clk 0:02:58]} 6. Nc3 {[%clk 0:03:00]}  Qc7 {[%clk 0:02:58]} 7. Bd3 {[%clk 0:02:55]}  Bb4 {[%clk 0:02:55]} 8. O-O {[%clk 0:02:54]}  Bxc3 {[%clk 0:02:54]} 9. bxc3 {[%clk 0:02:46]}  d6 {[%clk 0:02:55]} 10. f4 {[%clk 0:02:37]}  Nbd7 {[%clk 0:02:54]} 11. Kh1 {[%clk 0:02:36]}  O-O {[%clk 0:02:52]} 12. Qe2 {[%clk 0:02:35]}  b6 {[%clk 0:02:49]} 13. Rb1 {[%clk 0:02:34]}  Bb7 {[%clk 0:02:48]} 14. Re1 {[%clk 0:02:30]}  Nc5 {[%clk 0:02:48]} 15. e5 {[%clk 0:02:24]}  Nxd3 {[%clk 0:02:47]} 16. Qxd3 {[%clk 0:02:22]}  dxe5 {[%clk 0:02:33]} 17. fxe5 {[%clk 0:02:22]}  Nd7 {[%clk 0:02:09]} 18. Qg3 {[%clk 0:02:14]}  Kh8 {[%clk 0:02:06]} 19. Ba3 {[%clk 0:01:57]}  Nc5 {[%clk 0:01:52]} 20. Nb3 {[%clk 0:01:17]}  Rac8 {[%clk 0:00:43]} 21. Nxc5 {[%clk 0:01:02]}  bxc5 {[%clk 0:00:41]} 22. Bxc5 {[%clk 0:00:45]}  Bxg2+ {[%clk 0:00:39]} 23. Qxg2 {[%clk 0:00:42]}  Qxc5 {[%clk 0:00:40]} 24. Rb4 {[%clk 0:00:33]}  a5 {[%clk 0:00:32]} 25. Rb5 {[%clk 0:00:20]}  Qxc4 {[%clk 0:00:29]} 26. Rxa5 {[%clk 0:00:19]}  Qxc3 {[%clk 0:00:28]} 27. Rg1 {[%clk 0:00:20]}  g6 {[%clk 0:00:22]} 28. Rb5 {[%clk 0:00:20]}  Rb8 {[%clk 0:00:19]} 29. Rxb8 {[%clk 0:00:10]}  Rxb8 {[%clk 0:00:20]} 30. Qe4 {[%clk 0:00:08]}  Rb2 {[%clk 0:00:18]} 31. a4 {[%clk 0:00:06]}  Qd2 {[%clk 0:00:14]} 32. Rg2 {[%clk 0:00:02]}  Qd1+ {[%clk 0:00:09]} 33. Rg1 {[%clk 0:00:02]}  Qb3 {[%clk 0:00:09]} 34. Rg2 {[%clk 0:00:01]}  Rb1+ {[%clk 0:00:08]} 35. Rg1 {[%clk 0:00:01]}  Qb7 {[%clk 0:00:04]} 0-1


[Site "https://www.chess.com"]

[Event "Titled Tuesday Blitz December 27 Early 2022"]
[White "Garcia Almaguer, Juan Manuel"]
[Black "Movahed, Sina"]
[WhiteFideId "5110491"]
[BlackFideId "42520835"]
[WhiteElo "2090"]
[BlackElo "2340"]
[Result "0-1"]
[Round "01"]
[TimeControl "180+2"]
[Date "2022.12.27"]
[WhiteClock "0:00:31"]
[BlackClock "0:01:29"]

1. e4 {[%clk 0:02:46]}  c5 {[%clk 0:02:59]} 2. Nf3 {[%clk 0:02:43]}  d6 {[%clk 0:02:59]} 3. d4 {[%clk 0:02:39]}  cxd4 {[%clk 0:03:00]} 4. Nxd4 {[%clk 0:02:39]}  Nf6 {[%clk 0:03:00]} 5. Nc3 {[%clk 0:02:39]}  g6 {[%clk 0:02:59]} 6. Be3 {[%clk 0:02:34]}  Bg7 {[%clk 0:02:58]} 7. f3 {[%clk 0:02:34]}  O-O {[%clk 0:02:59]} 8. Bc4 {[%clk 0:02:30]}  Nc6 {[%clk 0:02:58]} 9. Nde2 {[%clk 0:02:29]}  Bd7 {[%clk 0:02:56]} 10. a3 {[%clk 0:02:28]}  Ne5 {[%clk 0:02:55]} 11. Ba2 {[%clk 0:02:27]}  b5 {[%clk 0:02:55]} 12. O-O {[%clk 0:02:22]}  a5 {[%clk 0:02:54]} 13. Nd5 {[%clk 0:02:22]}  Nxd5 {[%clk 0:02:47]} 14. Bxd5 {[%clk 0:02:21]}  Rc8 {[%clk 0:02:48]} 15. Bd4 {[%clk 0:02:20]}  Qc7 {[%clk 0:02:42]} 16. Rc1 {[%clk 0:02:15]}  b4 {[%clk 0:02:40]} 17. axb4 {[%clk 0:02:06]}  axb4 {[%clk 0:02:41]} 18. Kh1 {[%clk 0:02:06]}  Bb5 {[%clk 0:02:34]} 19. Re1 {[%clk 0:02:05]}  e6 {[%clk 0:02:29]} 20. Bb3 {[%clk 0:02:00]}  h5 {[%clk 0:02:27]} 21. Ra1 {[%clk 0:01:54]}  h4 {[%clk 0:02:26]} 22. Ra7 {[%clk 0:01:53]}  Qb8 {[%clk 0:02:24]} 23. Ng1 {[%clk 0:01:35]}  Bc4 {[%clk 0:02:14]} 24. Ba4 {[%clk 0:01:33]}  d5 {[%clk 0:02:11]} 25. b3 {[%clk 0:01:19]}  Bb5 {[%clk 0:02:01]} 26. exd5 {[%clk 0:01:14]}  Bxa4 {[%clk 0:01:55]} 27. Rxa4 {[%clk 0:01:14]}  exd5 {[%clk 0:01:55]} 28. Qd2 {[%clk 0:01:14]}  Nc6 {[%clk 0:01:47]} 29. Bxg7 {[%clk 0:01:14]}  Kxg7 {[%clk 0:01:48]} 30. Qxd5 {[%clk 0:01:14]}  Qc7 {[%clk 0:01:45]} 31. Qg5 {[%clk 0:00:58]}  Qd8 {[%clk 0:01:41]} 32. Qxd8 {[%clk 0:00:56]}  Rfxd8 {[%clk 0:01:42]} 33. f4 {[%clk 0:00:40]}  Nd4 {[%clk 0:01:31]} 34. Nf3 {[%clk 0:00:31]}  Nxf3 {[%clk 0:01:29]} 35. gxf3 {[%clk 0:00:30]}  Rxc2 {[%clk 0:01:29]} 36. Rxb4 {[%clk 0:00:31]}  Rdd2 {[%clk 0:01:28]} 37. Rb7 {[%clk 0:00:30]}  Rxh2+ {[%clk 0:01:27]} 38. Kg1 {[%clk 0:00:30]}  Rcg2+ {[%clk 0:01:28]} 39. Kf1 {[%clk 0:00:31]}  h3 {[%clk 0:01:29]} 0-1


[Site "https://www.chess.com"]

[Event "Titled Tuesday Blitz December 27 Early 2022"]
[White "Gerbelli Neto, Eduardo"]
[Black "Kozak, Antoni"]
[WhiteFideId "2103281"]
[BlackFideId "21832030"]
[WhiteElo "2114"]
[BlackElo "2422"]
[Result "0-1"]
[Round "01"]
[TimeControl "180+2"]
[Date "2022.12.27"]
[WhiteClock "0:00:33"]
[BlackClock "0:02:07"]

1. e4 {[%clk 0:02:56]}  c5 {[%clk 0:02:59]} 2. Nc3 {[%clk 0:02:56]}  a6 {[%clk 0:02:58]} 3. f4 {[%clk 0:02:57]}  b5 {[%clk 0:02:55]} 4. g3 {[%clk 0:02:57]}  Bb7 {[%clk 0:02:55]} 5. d3 {[%clk 0:02:58]}  e6 {[%clk 0:02:55]} 6. Nf3 {[%clk 0:02:56]}  b4 {[%clk 0:02:55]} 7. Nb1 {[%clk 0:02:54]}  d5 {[%clk 0:02:56]} 8. Nbd2 {[%clk 0:02:52]}  Nc6 {[%clk 0:02:52]} 9. Qe2 {[%clk 0:02:50]}  Nf6 {[%clk 0:02:47]} 10. Bg2 {[%clk 0:02:47]}  Be7 {[%clk 0:02:40]} 11. c3 {[%clk 0:02:34]}  a5 {[%clk 0:02:37]} 12. O-O {[%clk 0:02:30]}  O-O {[%clk 0:02:36]} 13. e5 {[%clk 0:02:11]}  Nd7 {[%clk 0:02:35]} 14. Re1 {[%clk 0:02:05]}  a4 {[%clk 0:02:34]} 15. c4 {[%clk 0:02:02]}  Nb6 {[%clk 0:02:29]} 16. h3 {[%clk 0:01:28]}  Qd7 {[%clk 0:02:24]} 17. b3 {[%clk 0:01:17]}  Rfd8 {[%clk 0:02:24]} 18. Rd1 {[%clk 0:01:05]}  dxc4 {[%clk 0:02:24]} 19. Nxc4 {[%clk 0:01:05]}  Nd4 {[%clk 0:02:23]} 20. Nxd4 {[%clk 0:01:04]}  Nxc4 {[%clk 0:02:21]} 21. dxc4 {[%clk 0:00:54]}  Bxg2 {[%clk 0:02:17]} 22. Kxg2 {[%clk 0:00:55]}  cxd4 {[%clk 0:02:17]} 23. Bb2 {[%clk 0:00:46]}  d3 {[%clk 0:02:16]} 24. Qf3 {[%clk 0:00:44]}  Bc5 {[%clk 0:02:09]} 25. Rd2 {[%clk 0:00:37]}  a3 {[%clk 0:02:06]} 26. Bc1 {[%clk 0:00:33]}  Qd4 {[%clk 0:02:07]} 0-1


[Site "https://www.chess.com"]

[Event "Titled Tuesday Blitz December 27 Early 2022"]
[White "Goltseva, Ekaterina"]
[Black "Hartikainen, Jarmo"]
[WhiteFideId "24173770"]
[BlackFideId "503134"]
[WhiteElo "2283"]
[BlackElo "2108"]
[Result "1-0"]
[Round "01"]
[TimeControl "180+2"]
[Date "2022.12.27"]
[WhiteClock "0:00:10"]
[BlackClock "0:00:12"]

1. d4 {[%clk 0:02:48]}  Nf6 {[%clk 0:02:58]} 2. c4 {[%clk 0:02:47]}  g6 {[%clk 0:02:58]} 3. Nc3 {[%clk 0:02:46]}  d5 {[%clk 0:02:58]} 4. Nf3 {[%clk 0:02:46]}  Bg7 {[%clk 0:02:57]} 5. h4 {[%clk 0:02:47]}  h5 {[%clk 0:02:56]} 6. Bg5 {[%clk 0:02:46]}  Ne4 {[%clk 0:02:56]} 7. cxd5 {[%clk 0:02:26]}  Nxc3 {[%clk 0:02:51]} 8. bxc3 {[%clk 0:02:27]}  Qxd5 {[%clk 0:02:49]} 9. Qb3 {[%clk 0:02:17]}  Qxb3 {[%clk 0:02:45]} 10. axb3 {[%clk 0:02:18]}  c5 {[%clk 0:02:44]} 11. e3 {[%clk 0:02:14]}  cxd4 {[%clk 0:02:34]} 12. exd4 {[%clk 0:02:10]}  O-O {[%clk 0:02:33]} 13. Bc4 {[%clk 0:02:02]}  Nc6 {[%clk 0:02:30]} 14. O-O {[%clk 0:02:01]}  Bg4 {[%clk 0:02:22]} 15. Nd2 {[%clk 0:01:55]}  Rfe8 {[%clk 0:01:55]} 16. Rfe1 {[%clk 0:01:44]}  a6 {[%clk 0:01:51]} 17. Ne4 {[%clk 0:01:31]}  Rad8 {[%clk 0:01:20]} 18. Nc5 {[%clk 0:01:20]}  b5 {[%clk 0:01:10]} 19. Rxa6 {[%clk 0:00:54]}  Nb8 {[%clk 0:01:04]} 20. Bxb5 {[%clk 0:00:39]}  Nxa6 {[%clk 0:01:02]} 21. Nxa6 {[%clk 0:00:40]}  Bd7 {[%clk 0:00:57]} 22. Bxd7 {[%clk 0:00:34]}  Rxd7 {[%clk 0:00:53]} 23. Nc5 {[%clk 0:00:34]}  Ra7 {[%clk 0:00:48]} 24. b4 {[%clk 0:00:28]}  Bf8 {[%clk 0:00:46]} 25. b5 {[%clk 0:00:24]}  Rb8 {[%clk 0:00:44]} 26. Rb1 {[%clk 0:00:21]}  e6 {[%clk 0:00:37]} 27. b6 {[%clk 0:00:17]}  Ra3 {[%clk 0:00:34]} 28. Bf4 {[%clk 0:00:16]}  Rxb6 {[%clk 0:00:17]} 29. Rxb6 {[%clk 0:00:15]}  Rxc3 {[%clk 0:00:17]} 30. Rb8 {[%clk 0:00:15]}  Kg7 {[%clk 0:00:17]} 31. Bh6+ {[%clk 0:00:12]}  Kxh6 {[%clk 0:00:17]} 32. Rxf8 {[%clk 0:00:12]}  Rc1+ {[%clk 0:00:17]} 33. Kh2 {[%clk 0:00:12]}  Rd1 {[%clk 0:00:18]} 34. Rxf7 {[%clk 0:00:12]}  Rxd4 {[%clk 0:00:17]} 35. g3 {[%clk 0:00:12]}  e5 {[%clk 0:00:16]} 36. Ne6 {[%clk 0:00:11]}  Rd2 {[%clk 0:00:12]} 37. Nf8 {[%clk 0:00:10]}  g5 {[%clk 0:00:12]} 38. Rh7# {[%clk 0:00:10]} 1-0


[Site "https://www.chess.com"]

[Event "Titled Tuesday Blitz December 27 Early 2022"]
[White "Grigoriants, Sergey"]
[Black "Bochnicka, Vladimir"]
[WhiteFideId "4130804"]
[BlackFideId "14943450"]
[WhiteElo "2562"]
[BlackElo "2327"]
[Result "1-0"]
[Round "01"]
[TimeControl "180+2"]
[Date "2022.12.27"]
[WhiteClock "0:00:51"]
[BlackClock "0:00:47"]

1. d4 {[%clk 0:02:59]}  d5 {[%clk 0:02:57]} 2. c4 {[%clk 0:02:59]}  dxc4 {[%clk 0:02:58]} 3. e3 {[%clk 0:02:58]}  Nf6 {[%clk 0:02:58]} 4. Bxc4 {[%clk 0:02:58]}  e6 {[%clk 0:02:59]} 5. Nf3 {[%clk 0:02:58]}  c5 {[%clk 0:02:59]} 6. O-O {[%clk 0:02:58]}  a6 {[%clk 0:02:58]} 7. Bb3 {[%clk 0:02:58]}  Nc6 {[%clk 0:02:55]} 8. Nc3 {[%clk 0:02:56]}  Be7 {[%clk 0:02:54]} 9. Qe2 {[%clk 0:02:50]}  O-O {[%clk 0:02:53]} 10. dxc5 {[%clk 0:02:48]}  Bxc5 {[%clk 0:02:53]} 11. e4 {[%clk 0:02:37]}  h6 {[%clk 0:02:36]} 12. e5 {[%clk 0:02:33]}  Nd7 {[%clk 0:02:31]} 13. Bf4 {[%clk 0:02:30]}  b5 {[%clk 0:02:27]} 14. Qe4 {[%clk 0:02:15]}  Bb7 {[%clk 0:02:19]} 15. Bc2 {[%clk 0:02:15]}  g6 {[%clk 0:02:02]} 16. Bxh6 {[%clk 0:02:15]}  Re8 {[%clk 0:01:46]} 17. Qf4 {[%clk 0:01:50]}  Qc7 {[%clk 0:01:37]} 18. Rfe1 {[%clk 0:01:39]}  Nb4 {[%clk 0:01:11]} 19. Be4 {[%clk 0:01:10]}  Bxe4 {[%clk 0:01:10]} 20. Nxe4 {[%clk 0:01:00]}  Be7 {[%clk 0:00:57]} 21. Rad1 {[%clk 0:00:55]}  Nc5 {[%clk 0:00:50]} 22. Nf6+ {[%clk 0:00:52]}  Kh8 {[%clk 0:00:47]} 23. Qh4 {[%clk 0:00:51]} 1-0


[Site "https://www.chess.com"]

[Event "Titled Tuesday Blitz December 27 Early 2022"]
[White "Guha, Eshan"]
[Black "Khoroshev, Nikita"]
[WhiteFideId "30958628"]
[BlackFideId "14200287"]
[WhiteElo "2071"]
[BlackElo "2336"]
[Result "0-1"]
[Round "01"]
[TimeControl "180+2"]
[Date "2022.12.27"]
[WhiteClock "0:00:11"]
[BlackClock "0:00:13"]

1. d4 {[%clk 0:02:52]}  Nf6 {[%clk 0:02:59]} 2. c4 {[%clk 0:02:51]}  g6 {[%clk 0:02:59]} 3. g3 {[%clk 0:02:51]}  Bg7 {[%clk 0:02:59]} 4. Bg2 {[%clk 0:02:51]}  O-O {[%clk 0:02:59]} 5. Nc3 {[%clk 0:02:51]}  d6 {[%clk 0:02:59]} 6. Nf3 {[%clk 0:02:50]}  Bf5 {[%clk 0:02:46]} 7. O-O {[%clk 0:02:39]}  c6 {[%clk 0:02:46]} 8. Ng5 {[%clk 0:02:37]}  h6 {[%clk 0:02:41]} 9. e4 {[%clk 0:02:36]}  Bc8 {[%clk 0:02:31]} 10. Nf3 {[%clk 0:02:31]}  Nbd7 {[%clk 0:02:31]} 11. h3 {[%clk 0:02:24]}  e5 {[%clk 0:02:31]} 12. Be3 {[%clk 0:02:24]}  Qe7 {[%clk 0:02:17]} 13. Re1 {[%clk 0:02:22]}  Ne8 {[%clk 0:02:11]} 14. Qd2 {[%clk 0:02:16]}  Kh7 {[%clk 0:02:10]} 15. Rad1 {[%clk 0:02:15]}  f5 {[%clk 0:02:08]} 16. exf5 {[%clk 0:02:09]}  gxf5 {[%clk 0:02:08]} 17. dxe5 {[%clk 0:01:57]}  dxe5 {[%clk 0:02:07]} 18. Qc2 {[%clk 0:01:45]}  e4 {[%clk 0:02:02]} 19. Nh4 {[%clk 0:01:43]}  Ne5 {[%clk 0:01:54]} 20. Nxe4 {[%clk 0:01:12]}  fxe4 {[%clk 0:01:51]} 21. Qxe4+ {[%clk 0:01:13]}  Kg8 {[%clk 0:01:47]} 22. Bd4 {[%clk 0:00:57]}  Nd6 {[%clk 0:01:37]} 23. Qe2 {[%clk 0:00:57]}  Ndf7 {[%clk 0:01:14]} 24. f4 {[%clk 0:00:56]}  Be6 {[%clk 0:00:46]} 25. fxe5 {[%clk 0:00:52]}  Qg5 {[%clk 0:00:44]} 26. Kh2 {[%clk 0:00:44]}  Rad8 {[%clk 0:00:42]} 27. Nf3 {[%clk 0:00:44]}  Qh5 {[%clk 0:00:41]} 28. b3 {[%clk 0:00:37]}  Bg4 {[%clk 0:00:34]} 29. Qe4 {[%clk 0:00:33]}  Bf5 {[%clk 0:00:29]} 30. Qe3 {[%clk 0:00:33]}  c5 {[%clk 0:00:27]} 31. Bxc5 {[%clk 0:00:31]}  Rxd1 {[%clk 0:00:27]} 32. Rxd1 {[%clk 0:00:32]}  Nxe5 {[%clk 0:00:23]} 33. Nxe5 {[%clk 0:00:16]}  Qxd1 {[%clk 0:00:21]} 34. Bxf8 {[%clk 0:00:17]}  Kxf8 {[%clk 0:00:20]} 35. Qc5+ {[%clk 0:00:16]}  Ke8 {[%clk 0:00:19]} 36. Qc7 {[%clk 0:00:13]}  Bf6 {[%clk 0:00:16]} 37. Qb8+ {[%clk 0:00:11]}  Ke7 {[%clk 0:00:16]} 38. Qxb7+ {[%clk 0:00:12]}  Kd6 {[%clk 0:00:16]} 39. Nf3 {[%clk 0:00:09]}  Qe2 {[%clk 0:00:13]} 40. Qb4+ {[%clk 0:00:09]}  Kc7 {[%clk 0:00:13]} 41. Qc5+ {[%clk 0:00:09]}  Kb8 {[%clk 0:00:12]} 42. Qf8+ {[%clk 0:00:08]}  Kc7 {[%clk 0:00:11]} 43. Qxf6 {[%clk 0:00:08]}  Be4 {[%clk 0:00:12]} 44. Qe5+ {[%clk 0:00:08]}  Kb6 {[%clk 0:00:12]} 45. Qd4+ {[%clk 0:00:08]}  Kc7 {[%clk 0:00:12]} 46. Qe5+ {[%clk 0:00:08]}  Kb6 {[%clk 0:00:12]} 47. Qf4 {[%clk 0:00:09]}  Bd3 {[%clk 0:00:11]} 48. Qd4+ {[%clk 0:00:09]}  Kc7 {[%clk 0:00:11]} 49. Qc5+ {[%clk 0:00:09]}  Kb8 {[%clk 0:00:12]} 50. Qd6+ {[%clk 0:00:08]}  Kc8 {[%clk 0:00:12]} 51. Qc6+ {[%clk 0:00:08]}  Kb8 {[%clk 0:00:12]} 52. Qd6+ {[%clk 0:00:07]}  Kc8 {[%clk 0:00:12]} 53. Qe5 {[%clk 0:00:08]}  Qf2 {[%clk 0:00:11]} 54. Qf4 {[%clk 0:00:07]}  Bf1 {[%clk 0:00:11]} 55. Qg4+ {[%clk 0:00:07]}  Kb8 {[%clk 0:00:11]} 56. Qf4+ {[%clk 0:00:08]}  Kc8 {[%clk 0:00:11]} 57. Qf5+ {[%clk 0:00:08]}  Kb8 {[%clk 0:00:12]} 58. Qe5+ {[%clk 0:00:08]}  Kc8 {[%clk 0:00:12]} 59. Nh4 {[%clk 0:00:08]}  Bxg2 {[%clk 0:00:10]} 60. Nxg2 {[%clk 0:00:09]}  Qxa2 {[%clk 0:00:11]} 61. Qc5+ {[%clk 0:00:09]}  Kb8 {[%clk 0:00:11]} 62. Qd6+ {[%clk 0:00:09]}  Kb7 {[%clk 0:00:11]} 63. Qd7+ {[%clk 0:00:09]}  Kb8 {[%clk 0:00:11]} 64. Qd8+ {[%clk 0:00:10]}  Kb7 {[%clk 0:00:11]} 65. Qd7+ {[%clk 0:00:11]}  Kb8 {[%clk 0:00:12]} 66. Qb5+ {[%clk 0:00:11]}  Kc8 {[%clk 0:00:12]} 67. Qe8+ {[%clk 0:00:11]}  Kb7 {[%clk 0:00:12]} 68. Qe7+ {[%clk 0:00:11]}  Kb8 {[%clk 0:00:13]} 69. Qe5+ {[%clk 0:00:10]}  Kb7 {[%clk 0:00:13]} 70. Qg7+ {[%clk 0:00:11]}  Kb8 {[%clk 0:00:13]} 71. Qxh6 {[%clk 0:00:10]}  Qxb3 {[%clk 0:00:13]} 72. Qf4+ {[%clk 0:00:11]}  Kb7 {[%clk 0:00:14]} 73. c5 {[%clk 0:00:11]}  a5 {[%clk 0:00:14]} 74. Qf7+ {[%clk 0:00:10]}  Qxf7 {[%clk 0:00:13]} 75. c6+ {[%clk 0:00:10]}  Kxc6 {[%clk 0:00:13]} 76. Nf4 {[%clk 0:00:11]}  Qa2+ {[%clk 0:00:13]} 0-1


[Site "https://www.chess.com"]

[Event "Titled Tuesday Blitz December 27 Early 2022"]
[White "Hardaway, Brewington"]
[Black "Manon-og, Ramon Jr."]
[WhiteFideId "30941849"]
[BlackFideId "5200776"]
[WhiteElo "2363"]
[BlackElo "1999"]
[Result "1-0"]
[Round "01"]
[TimeControl "180+2"]
[Date "2022.12.27"]
[WhiteClock "0:01:16"]
[BlackClock "0:00:05"]

1. Nf3 {[%clk 0:02:59]}  d5 {[%clk 0:02:53]} 2. e3 {[%clk 0:02:58]}  Nc6 {[%clk 0:02:50]} 3. d4 {[%clk 0:02:56]}  e6 {[%clk 0:02:47]} 4. c4 {[%clk 0:02:55]}  Bd7 {[%clk 0:02:40]} 5. Nc3 {[%clk 0:02:53]}  Nf6 {[%clk 0:02:40]} 6. Bd3 {[%clk 0:02:50]}  dxc4 {[%clk 0:02:38]} 7. Bxc4 {[%clk 0:02:48]}  Bd6 {[%clk 0:02:30]} 8. O-O {[%clk 0:02:47]}  O-O {[%clk 0:02:28]} 9. Qc2 {[%clk 0:01:59]}  g6 {[%clk 0:02:04]} 10. e4 {[%clk 0:01:54]}  e5 {[%clk 0:01:54]} 11. d5 {[%clk 0:01:52]}  Nd4 {[%clk 0:01:51]} 12. Qd3 {[%clk 0:01:52]}  Nxf3+ {[%clk 0:01:45]} 13. Qxf3 {[%clk 0:01:53]}  Bg4 {[%clk 0:01:39]} 14. Qg3 {[%clk 0:01:49]}  Qd7 {[%clk 0:01:32]} 15. h3 {[%clk 0:01:36]}  Bh5 {[%clk 0:01:27]} 16. Bg5 {[%clk 0:01:34]}  Be7 {[%clk 0:01:04]} 17. Qxe5 {[%clk 0:01:27]}  Qd6 {[%clk 0:00:55]} 18. Qxd6 {[%clk 0:01:25]}  cxd6 {[%clk 0:00:53]} 19. g4 {[%clk 0:01:26]}  Bxg4 {[%clk 0:00:46]} 20. hxg4 {[%clk 0:01:25]}  h6 {[%clk 0:00:43]} 21. Bxh6 {[%clk 0:01:18]}  Nxg4 {[%clk 0:00:43]} 22. Bxf8 {[%clk 0:01:17]}  Rxf8 {[%clk 0:00:40]} 23. Kg2 {[%clk 0:01:18]}  Bh4 {[%clk 0:00:39]} 24. Be2 {[%clk 0:01:17]}  f5 {[%clk 0:00:37]} 25. exf5 {[%clk 0:01:16]}  gxf5 {[%clk 0:00:38]} 26. Bxg4 {[%clk 0:01:17]}  fxg4 {[%clk 0:00:37]} 27. Ne4 {[%clk 0:01:17]}  Re8 {[%clk 0:00:36]} 28. Nxd6 {[%clk 0:01:17]}  Re7 {[%clk 0:00:29]} 29. Nf5 {[%clk 0:01:16]}  Rh7 {[%clk 0:00:27]} 30. Rh1 {[%clk 0:01:16]}  Bf6 {[%clk 0:00:17]} 31. Rxh7 {[%clk 0:01:15]}  Kxh7 {[%clk 0:00:14]} 32. d6 {[%clk 0:01:16]}  Be5 {[%clk 0:00:13]} 33. d7 {[%clk 0:01:14]}  Bc7 {[%clk 0:00:13]} 34. Rc1 {[%clk 0:01:14]}  Bd8 {[%clk 0:00:13]} 35. Rc8 {[%clk 0:01:14]}  Bh4 {[%clk 0:00:12]} 36. Re8 {[%clk 0:01:15]}  b6 {[%clk 0:00:10]} 37. Ne7 {[%clk 0:01:15]}  Bxe7 {[%clk 0:00:09]} 38. Rxe7+ {[%clk 0:01:16]}  Kh6 {[%clk 0:00:04]} 39. d8=Q {[%clk 0:01:16]}  Kg5 {[%clk 0:00:04]} 40. Qd5+ {[%clk 0:01:17]}  Kf4 {[%clk 0:00:05]} 41. Re4# {[%clk 0:01:16]} 1-0


[Site "https://www.chess.com"]

[Event "Titled Tuesday Blitz December 27 Early 2022"]
[White "Hirneise, Jens"]
[Black "Deac, Bogdan-Daniel"]
[WhiteFideId "24614734"]
[BlackFideId "1226380"]
[WhiteElo "2277"]
[BlackElo "2700"]
[Result "0-1"]
[Round "01"]
[TimeControl "180+2"]
[Date "2022.12.27"]
[WhiteClock "0:00:19"]
[BlackClock "0:00:48"]

1. d4 {[%clk 0:02:55]}  g6 {[%clk 0:02:59]} 2. e4 {[%clk 0:02:48]}  Bg7 {[%clk 0:02:59]} 3. Nc3 {[%clk 0:02:46]}  c5 {[%clk 0:02:59]} 4. Nf3 {[%clk 0:02:46]}  Qa5 {[%clk 0:02:57]} 5. dxc5 {[%clk 0:02:36]}  Bxc3+ {[%clk 0:02:50]} 6. bxc3 {[%clk 0:02:37]}  Qxc3+ {[%clk 0:02:50]} 7. Bd2 {[%clk 0:02:37]}  Qxc5 {[%clk 0:02:50]} 8. Bd3 {[%clk 0:02:35]}  d6 {[%clk 0:02:48]} 9. O-O {[%clk 0:02:33]}  Nf6 {[%clk 0:02:49]} 10. Qe2 {[%clk 0:02:28]}  Nc6 {[%clk 0:02:44]} 11. Bh6 {[%clk 0:02:21]}  Bg4 {[%clk 0:02:39]} 12. Bg7 {[%clk 0:02:06]}  Rg8 {[%clk 0:02:29]} 13. Bxf6 {[%clk 0:02:03]}  exf6 {[%clk 0:02:30]} 14. Bb5 {[%clk 0:02:00]}  O-O-O {[%clk 0:02:20]} 15. Bxc6 {[%clk 0:01:58]}  Qxc6 {[%clk 0:02:20]} 16. Qe3 {[%clk 0:01:51]}  Bxf3 {[%clk 0:02:16]} 17. Qxf3 {[%clk 0:01:42]}  f5 {[%clk 0:02:07]} 18. exf5 {[%clk 0:01:39]}  Qxf3 {[%clk 0:02:06]} 19. gxf3 {[%clk 0:01:40]}  gxf5+ {[%clk 0:02:07]} 20. Kh1 {[%clk 0:01:41]}  Rde8 {[%clk 0:02:05]} 21. Rad1 {[%clk 0:01:36]}  Re2 {[%clk 0:02:03]} 22. Rxd6 {[%clk 0:01:33]}  Rxc2 {[%clk 0:02:03]} 23. Rf6 {[%clk 0:01:32]}  Rg7 {[%clk 0:01:56]} 24. a4 {[%clk 0:01:27]}  Rc4 {[%clk 0:01:53]} 25. Rxf5 {[%clk 0:01:21]}  Rxa4 {[%clk 0:01:52]} 26. Rc5+ {[%clk 0:01:19]}  Kb8 {[%clk 0:01:51]} 27. Re1 {[%clk 0:01:12]}  a6 {[%clk 0:01:49]} 28. Rb1 {[%clk 0:01:05]}  Ra2 {[%clk 0:01:40]} 29. Re5 {[%clk 0:01:02]}  f6 {[%clk 0:01:35]} 30. Re6 {[%clk 0:01:00]}  Rxf2 {[%clk 0:01:29]} 31. Rxf6 {[%clk 0:00:58]}  Ka7 {[%clk 0:01:28]} 32. h4 {[%clk 0:00:50]}  Rc7 {[%clk 0:01:19]} 33. Kg1 {[%clk 0:00:45]}  Ra2 {[%clk 0:01:17]} 34. h5 {[%clk 0:00:43]}  b5 {[%clk 0:01:13]} 35. h6 {[%clk 0:00:41]}  b4 {[%clk 0:01:12]} 36. Re6 {[%clk 0:00:34]}  a5 {[%clk 0:01:10]} 37. Kf1 {[%clk 0:00:30]}  Rb7 {[%clk 0:01:04]} 38. Rd1 {[%clk 0:00:30]}  Rc7 {[%clk 0:00:52]} 39. Rdd6 {[%clk 0:00:23]}  Rc1+ {[%clk 0:00:50]} 40. Re1 {[%clk 0:00:23]}  Rxe1+ {[%clk 0:00:50]} 41. Kxe1 {[%clk 0:00:24]}  b3 {[%clk 0:00:50]} 42. Rd7+ {[%clk 0:00:20]}  Kb6 {[%clk 0:00:48]} 43. Rd8 {[%clk 0:00:19]} 0-1


[Site "https://www.chess.com"]